[Event "*** Titled Tuesday Blitz"]
[Site "Chess.com"]
[Date "2019.06.04"]
[Round "10"]
[White "ruvat"]
[Black "SanchezKelvin"]
[Result "0-1"]
[WhiteElo "2372"]
[BlackElo "2454"]
[TimeControl "180+2"]
[EndTime "15:19:42 PDT"]
[Termination "SanchezKelvin won by resignation"]

1. d4 {[%clk 0:02:49.4]} 1... d5 {[%clk 0:02:58.3]} 2. c4 {[%clk 0:02:48.8]}
2... c6 {[%clk 0:02:59.4]} 3. Nf3 {[%clk 0:02:49.1]} 3... Nf6 {[%clk 0:03:00.3]}
4. Qc2 {[%clk 0:02:49.9]} 4... dxc4 {[%clk 0:02:59.4]} 5. Qxc4 {[%clk
0:02:50.2]} 5... Bf5 {[%clk 0:03:01.3]} 6. g3 {[%clk 0:02:50.1]} 6... e6 {[%clk
0:03:02]} 7. Bg2 {[%clk 0:02:50.3]} 7... Nbd7 {[%clk 0:03:02.9]} 8. O-O {[%clk
0:02:49.7]} 8... Be7 {[%clk 0:03:00]} 9. Qb3 {[%clk 0:02:50.5]} 9... Qb6 {[%clk
0:03:00.3]} 10. Nbd2 {[%clk 0:02:51.3]} 10... Qxb3 {[%clk 0:03:00.7]} 11. Nxb3
{[%clk 0:02:52]} 11... h6 {[%clk 0:02:59.4]} 12. Na5 {[%clk 0:02:51.1]} 12...
O-O-O {[%clk 0:02:54.3]} 13. Bf4 {[%clk 0:02:44.2]} 13... Nb6 {[%clk 0:02:54.3]}
14. Ne5 {[%clk 0:02:40.7]} 14... Rhf8 {[%clk 0:02:47.1]} 15. Rfd1 {[%clk
0:02:25.8]} 15... Nfd5 {[%clk 0:02:34.9]} 16. Bd2 {[%clk 0:02:25.4]} 16... Nf6
{[%clk 0:02:22.4]} 17. Bf4 {[%clk 0:02:17]} 17... g5 {[%clk 0:02:20.6]} 18. Be3
{[%clk 0:02:09.8]} 18... Ng4 {[%clk 0:02:21.5]} 19. Nxg4 {[%clk 0:02:07.5]}
19... Bxg4 {[%clk 0:02:21.9]} 20. Kf1 {[%clk 0:02:02.9]} 20... Bb4 {[%clk
0:02:21]} 21. Nb3 {[%clk 0:01:53.6]} 21... Nc4 {[%clk 0:02:18.7]} 22. Bc1 {[%clk
0:01:40.4]} 22... Bf5 {[%clk 0:02:18.5]} 23. e4 {[%clk 0:01:38.2]} 23... Bg6
{[%clk 0:02:19.6]} 24. a3 {[%clk 0:01:34.7]} 24... Be7 {[%clk 0:02:17.6]} 25.
Ke2 {[%clk 0:01:25.6]} 25... c5 {[%clk 0:02:13.3]} 26. Nxc5 {[%clk 0:01:17.6]}
26... Bxc5 {[%clk 0:02:00.9]} 27. dxc5 {[%clk 0:01:19.5]} 27... Rxd1 {[%clk
0:01:56.9]} 28. Kxd1 {[%clk 0:01:21.4]} 28... Rd8+ {[%clk 0:01:57.5]} 29. Ke2
{[%clk 0:01:21.3]} 29... Na5 {[%clk 0:01:58.1]} 30. b4 {[%clk 0:01:12.5]} 30...
Nb3 {[%clk 0:01:57.8]} 31. Rb1 {[%clk 0:01:13.2]} 31... Nd4+ {[%clk 0:01:58.7]}
32. Kf1 {[%clk 0:01:07.8]} 32... Nb5 {[%clk 0:01:56.2]} 33. Bb2 {[%clk
0:00:46.3]} 33... Rd2 {[%clk 0:01:28.1]} 34. Ke1 {[%clk 0:00:46.3]} 34... Rc2
{[%clk 0:01:28.3]} 35. Bf3 {[%clk 0:00:41]} 35... Nc3 {[%clk 0:01:23.3]} 36.
Bxc3 {[%clk 0:00:37.3]} 36... Rxc3 {[%clk 0:01:24.5]} 37. Ke2 {[%clk 0:00:34.2]}
37... Rxa3 {[%clk 0:01:24.2]} 38. Rb2 {[%clk 0:00:28.9]} 38... f5 {[%clk
0:01:21.3]} 39. exf5 {[%clk 0:00:25.8]} 39... exf5 {[%clk 0:01:19.7]} 40. b5
{[%clk 0:00:26.4]} 40... Bf7 {[%clk 0:01:08.2]} 41. c6 {[%clk 0:00:24.6]} 41...
Bc4+ {[%clk 0:01:08.4]} 42. Kd2 {[%clk 0:00:19.9]} 42... Rxf3 {[%clk 0:01:08.5]}
43. Rb4 {[%clk 0:00:20.1]} 43... Bd5 {[%clk 0:01:06.2]} 44. Rd4 {[%clk
0:00:19.6]} 44... Be4 {[%clk 0:01:04.5]} 45. Ke2 {[%clk 0:00:18.2]} 45... Rb3
{[%clk 0:01:04.9]} 46. cxb7+ {[%clk 0:00:18]} 46... Kxb7 {[%clk 0:01:05.4]} 47.
Rd6 {[%clk 0:00:16.3]} 47... h5 {[%clk 0:01:05.1]} 0-1

[Event "*** Titled Tuesday Blitz"]
[Site "Chess.com"]
[Date "2019.06.04"]
[Round "10"]
[White "Polish_fighter3000"]
[Black "Hikaru"]
[Result "0-1"]
[WhiteElo "3007"]
[BlackElo "3210"]
[TimeControl "180+2"]
[EndTime "15:19:43 PDT"]
[Termination "Hikaru won by resignation"]

1. e4 {[%clk 0:03:01.9]} 1... e5 {[%clk 0:02:57.7]} 2. Nf3 {[%clk 0:03:02.8]}
2... Nc6 {[%clk 0:02:58]} 3. Bc4 {[%clk 0:03:04.4]} 3... Bc5 {[%clk 0:02:58.4]}
4. c3 {[%clk 0:03:04.9]} 4... Nf6 {[%clk 0:02:59.7]} 5. d3 {[%clk 0:03:06.3]}
5... d6 {[%clk 0:03:00.8]} 6. O-O {[%clk 0:03:06.7]} 6... O-O {[%clk 0:03:01.9]}
7. Bg5 {[%clk 0:03:07.7]} 7... h6 {[%clk 0:03:03]} 8. Bh4 {[%clk 0:03:09]} 8...
g5 {[%clk 0:02:56.6]} 9. Bg3 {[%clk 0:03:10.3]} 9... Kg7 {[%clk 0:02:55]} 10.
Nbd2 {[%clk 0:03:07.9]} 10... a5 {[%clk 0:02:55.9]} 11. h3 {[%clk 0:02:43.1]}
11... Ba7 {[%clk 0:02:51.5]} 12. Bb3 {[%clk 0:02:33]} 12... Nh7 {[%clk
0:02:51.1]} 13. d4 {[%clk 0:02:23.9]} 13... exd4 {[%clk 0:02:49.3]} 14. cxd4
{[%clk 0:02:19.1]} 14... Nxd4 {[%clk 0:02:50.4]} 15. Nxd4 {[%clk 0:02:16.8]}
15... Bxd4 {[%clk 0:02:52.3]} 16. Qc2 {[%clk 0:02:18]} 16... f5 {[%clk
0:02:43.1]} 17. Nf3 {[%clk 0:02:11.8]} 17... Bc5 {[%clk 0:02:25]} 18. e5 {[%clk
0:01:43.4]} 18... f4 {[%clk 0:02:23.1]} 19. Bh2 {[%clk 0:01:44.9]} 19... Bf5
{[%clk 0:02:22.2]} 20. Qc3 {[%clk 0:01:46.1]} 20... Bb4 {[%clk 0:02:23.4]} 21.
Qc4 {[%clk 0:01:44.5]} 21... d5 {[%clk 0:02:07.3]} 22. Qxd5 {[%clk 0:01:39.6]}
22... Qxd5 {[%clk 0:02:08.3]} 23. Bxd5 {[%clk 0:01:41.5]} 23... c6 {[%clk
0:02:09.4]} 24. Bc4 {[%clk 0:01:42.3]} 24... b5 {[%clk 0:02:09.8]} 25. Be2
{[%clk 0:01:43]} 25... Rfd8 {[%clk 0:02:09.5]} 26. Rfc1 {[%clk 0:01:41.8]} 26...
Be4 {[%clk 0:02:09.5]} 27. a4 {[%clk 0:01:35.1]} 27... bxa4 {[%clk 0:02:08.5]}
28. Rxa4 {[%clk 0:01:36]} 28... Nf8 {[%clk 0:02:08.7]} 29. Ne1 {[%clk
0:01:13.4]} 29... Ne6 {[%clk 0:02:05.9]} 30. Bf3 {[%clk 0:01:08.3]} 30... Nd4
{[%clk 0:01:58.2]} 31. Kf1 {[%clk 0:00:23]} 31... Bxf3 {[%clk 0:01:57.4]} 32.
Nxf3 {[%clk 0:00:23.3]} 32... Nxf3 {[%clk 0:01:58.8]} 33. gxf3 {[%clk
0:00:25.2]} 33... c5 {[%clk 0:02:00.4]} 34. h4 {[%clk 0:00:23.6]} 34... Rd5
{[%clk 0:01:58.3]} 35. hxg5 {[%clk 0:00:24.3]} 35... hxg5 {[%clk 0:01:59.7]} 36.
e6 {[%clk 0:00:24]} 36... Kf6 {[%clk 0:02:00.6]} 37. Bg1 {[%clk 0:00:19.8]}
37... Kxe6 {[%clk 0:02:01.6]} 38. Raa1 {[%clk 0:00:21.3]} 38... Rad8 {[%clk
0:02:02.5]} 39. Kg2 {[%clk 0:00:21.5]} 39... Kf5 {[%clk 0:02:02.5]} 40. b3
{[%clk 0:00:18.4]} 40... Re8 {[%clk 0:02:03.6]} 41. Rab1 {[%clk 0:00:14.3]}
41... Re2 {[%clk 0:02:02.2]} 42. Kf1 {[%clk 0:00:14.9]} 42... Red2 {[%clk
0:02:02.9]} 43. Kg2 {[%clk 0:00:13.7]} 43... R2d3 {[%clk 0:02:04.1]} 44. Bh2
{[%clk 0:00:14.5]} 44... Rc3 {[%clk 0:02:03.2]} 45. Rh1 {[%clk 0:00:09.9]} 45...
Rdd3 {[%clk 0:02:03.3]} 46. Rbe1 {[%clk 0:00:11.3]} 46... Rxb3 {[%clk
0:02:00.5]} 47. Re8 {[%clk 0:00:11.9]} 47... c4 {[%clk 0:02:01.9]} 48. Bg1
{[%clk 0:00:11.1]} 48... c3 {[%clk 0:01:52.5]} 49. Rc8 {[%clk 0:00:12]} 49... a4
{[%clk 0:01:50.4]} 50. Rh7 {[%clk 0:00:10.7]} 50... a3 {[%clk 0:01:51.6]} 51.
Rf7+ {[%clk 0:00:11.8]} 51... Ke6 {[%clk 0:01:52.9]} 52. Ra7 {[%clk 0:00:09.2]}
52... Rb2 {[%clk 0:01:54]} 53. Ra6+ {[%clk 0:00:05.6]} 53... Rd6 {[%clk
0:01:54.8]} 54. Ra7 {[%clk 0:00:04]} 54... a2 {[%clk 0:01:54.9]} 55. Re8+ {[%clk
0:00:04.4]} 55... Kd5 {[%clk 0:01:56.4]} 56. Rea8 {[%clk 0:00:04.1]} 56... c2
{[%clk 0:01:57.4]} 57. Rg8 {[%clk 0:00:03.7]} 57... c1=Q {[%clk 0:01:56.9]} 58.
Rxg5+ {[%clk 0:00:05.6]} 58... Kc6 {[%clk 0:01:57.9]} 59. Ra6+ {[%clk
0:00:05.9]} 59... Kb7 {[%clk 0:01:59.4]} 0-1

[Event "*** Titled Tuesday Blitz"]
[Site "Chess.com"]
[Date "2019.06.04"]
[Round "10"]
[White "x-5963514717"]
[Black "Rumpel-VK"]
[Result "1/2-1/2"]
[WhiteElo "2513"]
[BlackElo "2606"]
[TimeControl "180+2"]
[EndTime "15:19:51 PDT"]
[Termination "Game drawn by repetition"]

1. Nf3 {[%clk 0:03:01.9]} 1... d5 {[%clk 0:02:59.9]} 2. g3 {[%clk 0:03:03.1]}
2... Bg4 {[%clk 0:02:46.4]} 3. Bg2 {[%clk 0:03:02.9]} 3... Nd7 {[%clk
0:02:47.3]} 4. O-O {[%clk 0:03:03.3]} 4... c6 {[%clk 0:02:45.8]} 5. d3 {[%clk
0:02:56.8]} 5... e5 {[%clk 0:02:45.2]} 6. Nbd2 {[%clk 0:02:52.3]} 6... Ngf6
{[%clk 0:02:43.6]} 7. e4 {[%clk 0:02:50.7]} 7... dxe4 {[%clk 0:02:36.4]} 8. dxe4
{[%clk 0:02:52.6]} 8... Bc5 {[%clk 0:02:36.4]} 9. h3 {[%clk 0:02:46.6]} 9... Bh5
{[%clk 0:02:33.4]} 10. Qe1 {[%clk 0:02:40.6]} 10... O-O {[%clk 0:02:28.2]} 11.
Nc4 {[%clk 0:02:34.3]} 11... Qe7 {[%clk 0:02:02.6]} 12. Nh4 {[%clk 0:02:29.1]}
12... Bg6 {[%clk 0:02:02.8]} 13. a4 {[%clk 0:02:18.1]} 13... Nh5 {[%clk
0:01:53.9]} 14. Ne3 {[%clk 0:02:05.2]} 14... Bxe3 {[%clk 0:01:44.3]} 15. Bxe3
{[%clk 0:02:05.5]} 15... f6 {[%clk 0:01:42.9]} 16. Nxg6 {[%clk 0:02:04.3]} 16...
hxg6 {[%clk 0:01:43]} 17. Qc3 {[%clk 0:02:02.7]} 17... Kh7 {[%clk 0:01:36.9]}
18. a5 {[%clk 0:02:02.1]} 18... a6 {[%clk 0:01:27.9]} 19. Rfd1 {[%clk 0:02:02]}
19... Rfd8 {[%clk 0:01:25.1]} 20. Rd3 {[%clk 0:01:49.3]} 20... f5 {[%clk
0:01:18.7]} 21. Rad1 {[%clk 0:01:43.7]} 21... f4 {[%clk 0:01:05.4]} 22. Bc1
{[%clk 0:01:33.5]} 22... Nc5 {[%clk 0:00:42]} 23. Rxd8 {[%clk 0:01:30.6]} 23...
Rxd8 {[%clk 0:00:43.1]} 24. Rxd8 {[%clk 0:01:29.5]} 24... Qxd8 {[%clk
0:00:44.6]} 25. Qxc5 {[%clk 0:01:06.4]} 25... Qd1+ {[%clk 0:00:42.7]} 26. Kh2
{[%clk 0:01:07.3]} 26... fxg3+ {[%clk 0:00:27.8]} 27. fxg3 {[%clk 0:01:08]}
27... Qxc1 {[%clk 0:00:28.5]} 28. Qxe5 {[%clk 0:01:09.2]} 28... Qxc2 {[%clk
0:00:27.6]} 29. b4 {[%clk 0:00:58.4]} 29... Nf6 {[%clk 0:00:22.5]} 30. Qf4
{[%clk 0:00:50]} 30... Nh5 {[%clk 0:00:11.9]} 31. Qh4 {[%clk 0:00:49.4]} 31...
Qc3 {[%clk 0:00:12.2]} 32. g4 {[%clk 0:00:26.8]} 32... Qe5+ {[%clk 0:00:12.7]}
33. Kg1 {[%clk 0:00:25.3]} 33... Qd4+ {[%clk 0:00:11.9]} 34. Kh2 {[%clk
0:00:21.7]} 34... Qe5+ {[%clk 0:00:11.8]} 35. Kg1 {[%clk 0:00:21.3]} 35... Qa1+
{[%clk 0:00:12.3]} 36. Kh2 {[%clk 0:00:21.7]} 36... Qe5+ {[%clk 0:00:08.6]}
1/2-1/2

[Event "*** Titled Tuesday Blitz"]
[Site "Chess.com"]
[Date "2019.06.04"]
[Round "10"]
[White "dopolian"]
[Black "yuki_chess123"]
[Result "0-1"]
[WhiteElo "2258"]
[BlackElo "2183"]
[TimeControl "180+2"]
[EndTime "15:19:56 PDT"]
[Termination "yuki_chess123 won by resignation"]

1. e4 {[%clk 0:03:01.9]} 1... g6 {[%clk 0:00:26.7]} 2. d4 {[%clk 0:03:00.8]}
2... Bg7 {[%clk 0:00:27.9]} 3. Nc3 {[%clk 0:03:01.5]} 3... c6 {[%clk 0:00:29.2]}
4. f4 {[%clk 0:03:01.9]} 4... d5 {[%clk 0:00:30.4]} 5. e5 {[%clk 0:03:03.5]}
5... Nh6 {[%clk 0:00:30.3]} 6. Nf3 {[%clk 0:03:02]} 6... f6 {[%clk 0:00:31.7]}
7. Be2 {[%clk 0:02:56.6]} 7... Bg4 {[%clk 0:00:31]} 8. O-O {[%clk 0:02:56.1]}
8... O-O {[%clk 0:00:31.5]} 9. Be3 {[%clk 0:02:55.1]} 9... Nd7 {[%clk
0:00:31.4]} 10. h3 {[%clk 0:02:52.2]} 10... Bxf3 {[%clk 0:00:32.2]} 11. Bxf3
{[%clk 0:02:54.1]} 11... Nf5 {[%clk 0:00:33.5]} 12. Bf2 {[%clk 0:02:53.8]} 12...
fxe5 {[%clk 0:00:34.8]} 13. fxe5 {[%clk 0:02:50.3]} 13... e6 {[%clk 0:00:36.1]}
14. Ne2 {[%clk 0:02:46.4]} 14... Bh6 {[%clk 0:00:36.8]} 15. Qd3 {[%clk 0:02:36]}
15... Qb6 {[%clk 0:00:36.9]} 16. c3 {[%clk 0:02:30.7]} 16... Rf7 {[%clk
0:00:33.8]} 17. b4 {[%clk 0:02:26.6]} 17... Raf8 {[%clk 0:00:32.1]} 18. g4
{[%clk 0:02:21.4]} 18... Nh4 {[%clk 0:00:18.1]} 19. Bxh4 {[%clk 0:01:38.9]}
19... Nxe5 {[%clk 0:00:18.1]} 20. Bxd5 {[%clk 0:01:22.3]} 20... Rxf1+ {[%clk
0:00:14.9]} 21. Rxf1 {[%clk 0:01:24.2]} 21... Rxf1+ {[%clk 0:00:16]} 22. Kxf1
{[%clk 0:01:26.1]} 22... Nxd3 {[%clk 0:00:17.1]} 23. Bxe6+ {[%clk 0:01:27]}
23... Kh8 {[%clk 0:00:18.3]} 24. Bc4 {[%clk 0:01:11.8]} 24... Nb2 {[%clk
0:00:18.4]} 25. Bb3 {[%clk 0:01:06]} 25... Qa6 {[%clk 0:00:18.6]} 26. Kf2 {[%clk
0:00:56.5]} 26... Nd3+ {[%clk 0:00:19]} 27. Kg2 {[%clk 0:00:54.5]} 27... b5
{[%clk 0:00:16.6]} 28. d5 {[%clk 0:00:31.6]} 28... cxd5 {[%clk 0:00:16.1]} 29.
Bxd5 {[%clk 0:00:33.5]} 29... Qd6 {[%clk 0:00:15.5]} 30. Be4 {[%clk 0:00:26.6]}
30... Nf4+ {[%clk 0:00:15.6]} 31. Nxf4 {[%clk 0:00:27.5]} 31... Bxf4 {[%clk
0:00:16.9]} 32. Kf3 {[%clk 0:00:23]} 32... Be5 {[%clk 0:00:17.7]} 33. Be1 {[%clk
0:00:21.9]} 33... a6 {[%clk 0:00:18.7]} 34. Ke2 {[%clk 0:00:19.9]} 34... Kg7
{[%clk 0:00:19.8]} 35. Bd2 {[%clk 0:00:20.5]} 35... h6 {[%clk 0:00:20.9]} 36.
Bd3 {[%clk 0:00:19.6]} 36... g5 {[%clk 0:00:22]} 37. Be4 {[%clk 0:00:14.2]}
37... Qc7 {[%clk 0:00:22.4]} 38. Kd3 {[%clk 0:00:14.5]} 38... Qc4+ {[%clk
0:00:23.2]} 39. Ke3 {[%clk 0:00:10.6]} 39... Bf4+ {[%clk 0:00:24.3]} 0-1

[Event "*** Titled Tuesday Blitz"]
[Site "Chess.com"]
[Date "2019.06.04"]
[Round "10"]
[White "Manukyan_Artak"]
[Black "SloLev"]
[Result "0-1"]
[WhiteElo "2398"]
[BlackElo "2489"]
[TimeControl "180+2"]
[EndTime "15:20:00 PDT"]
[Termination "SloLev won by resignation"]

1. e4 {[%clk 0:03:01.9]} 1... e5 {[%clk 0:03:00.3]} 2. Nf3 {[%clk 0:03:02.1]}
2... Nc6 {[%clk 0:03:01.2]} 3. d4 {[%clk 0:03:03.2]} 3... exd4 {[%clk
0:03:01.8]} 4. Nxd4 {[%clk 0:03:05.1]} 4... Nf6 {[%clk 0:03:00.3]} 5. Nxc6
{[%clk 0:03:05.8]} 5... bxc6 {[%clk 0:02:59]} 6. e5 {[%clk 0:03:07.3]} 6... Qe7
{[%clk 0:02:59.1]} 7. Qe2 {[%clk 0:03:07.8]} 7... Nd5 {[%clk 0:03:00.2]} 8. c4
{[%clk 0:03:09.7]} 8... Ba6 {[%clk 0:03:00.7]} 9. b3 {[%clk 0:03:08.2]} 9... d6
{[%clk 0:02:53.2]} 10. exd6 {[%clk 0:03:06.3]} 10... Qxe2+ {[%clk 0:02:48.2]}
11. Bxe2 {[%clk 0:03:07]} 11... Nb4 {[%clk 0:02:49.6]} 12. dxc7 {[%clk 0:02:50]}
12... Nc2+ {[%clk 0:02:42.6]} 13. Kd1 {[%clk 0:02:51.2]} 13... Nxa1 {[%clk
0:02:43.6]} 14. Bb2 {[%clk 0:02:51.9]} 14... Kd7 {[%clk 0:02:33.9]} 15. Bxa1
{[%clk 0:02:49.8]} 15... Kxc7 {[%clk 0:02:34.9]} 16. Kc2 {[%clk 0:02:47.8]}
16... Re8 {[%clk 0:02:32.9]} 17. Bd3 {[%clk 0:02:44.3]} 17... Bc5 {[%clk
0:02:32.5]} 18. f4 {[%clk 0:02:38.6]} 18... f6 {[%clk 0:02:31.9]} 19. Nc3 {[%clk
0:02:36.9]} 19... Re7 {[%clk 0:02:24.2]} 20. Ne4 {[%clk 0:02:37.2]} 20... Bb4
{[%clk 0:02:17.4]} 21. g4 {[%clk 0:02:29.7]} 21... Rhe8 {[%clk 0:02:15.2]} 22.
Ng3 {[%clk 0:02:26.3]} 22... Bc8 {[%clk 0:02:14.8]} 23. g5 {[%clk 0:02:17.4]}
23... fxg5 {[%clk 0:02:03]} 24. fxg5 {[%clk 0:02:19.3]} 24... g6 {[%clk
0:02:04.5]} 25. Rf1 {[%clk 0:02:08.9]} 25... Re1 {[%clk 0:02:00.4]} 26. Bd4
{[%clk 0:02:03.8]} 26... Rxf1 {[%clk 0:01:58.9]} 27. Nxf1 {[%clk 0:02:02.9]}
27... a6 {[%clk 0:01:55.1]} 28. c5 {[%clk 0:01:58.7]} 28... Be1 {[%clk
0:01:54.4]} 29. Ne3 {[%clk 0:01:46.8]} 29... Bf2 {[%clk 0:01:51.3]} 30. Nd5+
{[%clk 0:01:47.8]} 30... cxd5 {[%clk 0:01:53.2]} 31. Bxf2 {[%clk 0:01:49.6]}
31... Bf5 {[%clk 0:01:53.7]} 32. b4 {[%clk 0:01:38.7]} 32... Kc6 {[%clk
0:01:50.7]} 33. Kc3 {[%clk 0:01:31.4]} 33... Bxd3 {[%clk 0:01:50.4]} 34. Kxd3
{[%clk 0:01:31.8]} 34... Re5 {[%clk 0:01:50]} 35. h4 {[%clk 0:01:29.7]} 35...
Re4 {[%clk 0:01:51.2]} 36. a3 {[%clk 0:01:30.9]} 36... Rf4 {[%clk 0:01:52.3]}
37. Be1 {[%clk 0:01:30.1]} 37... Kb5 {[%clk 0:01:48.1]} 38. Ke2 {[%clk
0:01:11.8]} 38... Rc4 {[%clk 0:01:44.1]} 39. Kd3 {[%clk 0:01:11.5]} 39... Ka4
{[%clk 0:01:43.2]} 40. c6 {[%clk 0:01:00.4]} 40... Kxa3 {[%clk 0:01:41.6]} 41.
c7 {[%clk 0:00:58.2]} 41... Rxc7 {[%clk 0:01:41.9]} 42. Kd4 {[%clk 0:01:00.1]}
42... Re7 {[%clk 0:01:36.9]} 43. Bg3 {[%clk 0:00:56.1]} 43... Re4+ {[%clk
0:01:33.5]} 44. Kxd5 {[%clk 0:00:56.9]} 44... Re2 {[%clk 0:01:17.1]} 45. Bd6
{[%clk 0:00:55.9]} 45... Ka4 {[%clk 0:01:18.1]} 46. Bf8 {[%clk 0:00:53.2]} 46...
Rh2 {[%clk 0:01:16.2]} 47. Ke6 {[%clk 0:00:54.2]} 47... Kb5 {[%clk 0:00:44.8]}
48. Kf7 {[%clk 0:00:53]} 48... Kc6 {[%clk 0:00:40.4]} 49. Kg7 {[%clk 0:00:53.5]}
49... Rxh4 {[%clk 0:00:40.7]} 50. Kg8 {[%clk 0:00:54.5]} 50... Kd7 {[%clk
0:00:40.5]} 51. Bh6 {[%clk 0:00:55.4]} 51... Ke6 {[%clk 0:00:40.4]} 52. Kxh7
{[%clk 0:00:56.6]} 52... Kf5 {[%clk 0:00:41.8]} 0-1

[Event "*** Titled Tuesday Blitz"]
[Site "Chess.com"]
[Date "2019.06.04"]
[Round "10"]
[White "champ2005"]
[Black "HansCoolNiemann"]
[Result "1-0"]
[WhiteElo "2832"]
[BlackElo "2711"]
[TimeControl "180+2"]
[EndTime "15:20:03 PDT"]
[Termination "champ2005 won by resignation"]

1. d4 {[%clk 0:02:48.3]} 1... d5 {[%clk 0:02:58.1]} 2. c4 {[%clk 0:02:46.5]}
2... c6 {[%clk 0:02:58.3]} 3. Nf3 {[%clk 0:02:47.4]} 3... Nf6 {[%clk 0:02:59.4]}
4. Nc3 {[%clk 0:02:47.3]} 4... dxc4 {[%clk 0:03:00.6]} 5. a4 {[%clk 0:02:45.6]}
5... Bf5 {[%clk 0:03:00.8]} 6. Ne5 {[%clk 0:02:46.2]} 6... Nbd7 {[%clk
0:03:00.1]} 7. Nxc4 {[%clk 0:02:46.8]} 7... e6 {[%clk 0:03:01.6]} 8. g3 {[%clk
0:02:45.3]} 8... Bb4 {[%clk 0:03:02.6]} 9. Bg2 {[%clk 0:02:45.4]} 9... O-O
{[%clk 0:03:03.6]} 10. O-O {[%clk 0:02:46.2]} 10... c5 {[%clk 0:03:03.7]} 11.
Bxb7 {[%clk 0:02:41.1]} 11... Rb8 {[%clk 0:03:04]} 12. Bg2 {[%clk 0:02:42.2]}
12... cxd4 {[%clk 0:03:05.4]} 13. Qxd4 {[%clk 0:02:41.1]} 13... Nc5 {[%clk
0:03:07.3]} 14. Qxd8 {[%clk 0:02:38.4]} 14... Rbxd8 {[%clk 0:03:00]} 15. Be3
{[%clk 0:02:38.6]} 15... Ng4 {[%clk 0:02:58.5]} 16. Bxc5 {[%clk 0:02:29.3]}
16... Bxc5 {[%clk 0:03:00.4]} 17. h3 {[%clk 0:02:26.2]} 17... Nf6 {[%clk
0:03:00.7]} 18. e4 {[%clk 0:02:18.7]} 18... Bg6 {[%clk 0:03:00.8]} 19. Ne5
{[%clk 0:02:18]} 19... Rd2 {[%clk 0:02:57.2]} 20. Nc4 {[%clk 0:02:08.8]} 20...
Rd4 {[%clk 0:02:56.2]} 21. b3 {[%clk 0:02:07.8]} 21... Rd3 {[%clk 0:02:56.9]}
22. Rac1 {[%clk 0:01:59.2]} 22... Rxg3 {[%clk 0:02:47.1]} 23. b4 {[%clk
0:02:00.1]} 23... Rxg2+ {[%clk 0:02:27.1]} 24. Kxg2 {[%clk 0:02:00.4]} 24...
Bxb4 {[%clk 0:02:29]} 25. f3 {[%clk 0:01:57.6]} 25... Rc8 {[%clk 0:02:28.3]} 26.
Ne2 {[%clk 0:01:54]} 26... Nh5 {[%clk 0:01:53.4]} 27. Ne5 {[%clk 0:01:51.3]}
27... Rf8 {[%clk 0:01:52.9]} 28. Rfd1 {[%clk 0:01:47.5]} 28... f5 {[%clk
0:01:49.6]} 29. Nxg6 {[%clk 0:01:42.5]} 29... hxg6 {[%clk 0:01:51.5]} 30. Rc6
{[%clk 0:01:27.5]} 30... Re8 {[%clk 0:01:32.1]} 31. e5 {[%clk 0:01:20.3]} 31...
a5 {[%clk 0:01:30.7]} 32. h4 {[%clk 0:01:07.8]} 32... Kf7 {[%clk 0:01:16]} 33.
Rd7+ {[%clk 0:01:06.9]} 33... Kg8 {[%clk 0:01:13.8]} 34. f4 {[%clk 0:00:50.1]}
34... Be1 {[%clk 0:01:06.9]} 35. Kf3 {[%clk 0:00:42.2]} 35... Bxh4 {[%clk
0:01:00.6]} 36. Nd4 {[%clk 0:00:42.9]} 36... g5 {[%clk 0:01:01.7]} 37. fxg5
{[%clk 0:00:43.5]} 37... Bxg5 {[%clk 0:01:02.8]} 38. Rxe6 {[%clk 0:00:36.9]}
38... Rf8 {[%clk 0:01:03.1]} 39. Rg6 {[%clk 0:00:29.9]} 39... Bh6 {[%clk
0:00:59.3]} 40. Rgd6 {[%clk 0:00:28.3]} 40... Re8 {[%clk 0:00:40.1]} 41. Rd8
{[%clk 0:00:26.1]} 41... Rxd8 {[%clk 0:00:34.5]} 42. Rxd8+ {[%clk 0:00:28]}
42... Kf7 {[%clk 0:00:36.4]} 43. Nxf5 {[%clk 0:00:26.8]} 43... Bg5 {[%clk
0:00:37.2]} 44. Ra8 {[%clk 0:00:25.6]} 44... Ke6 {[%clk 0:00:34.8]} 45. Kg4
{[%clk 0:00:26.2]} 1-0

[Event "*** Titled Tuesday Blitz"]
[Site "Chess.com"]
[Date "2019.06.04"]
[Round "10"]
[White "BillieKimbah"]
[Black "KNVB"]
[Result "0-1"]
[WhiteElo "2788"]
[BlackElo "2736"]
[TimeControl "180+2"]
[EndTime "15:20:08 PDT"]
[Termination "KNVB won by resignation"]

1. d4 {[%clk 0:03:01.4]} 1... Nf6 {[%clk 0:02:51.2]} 2. c4 {[%clk 0:03:00.9]}
2... e6 {[%clk 0:02:47.8]} 3. Nc3 {[%clk 0:03:01.6]} 3... Bb4 {[%clk 0:02:46.3]}
4. g3 {[%clk 0:03:02.9]} 4... d5 {[%clk 0:02:39.3]} 5. Bg2 {[%clk 0:03:02.5]}
5... O-O {[%clk 0:02:29.8]} 6. Nf3 {[%clk 0:03:04.1]} 6... dxc4 {[%clk 0:01:37]}
7. O-O {[%clk 0:03:04]} 7... c5 {[%clk 0:01:37.9]} 8. dxc5 {[%clk 0:03:00.6]}
8... Bxc5 {[%clk 0:01:31.2]} 9. Ne5 {[%clk 0:02:58]} 9... Qe7 {[%clk 0:01:12.1]}
10. Bg5 {[%clk 0:02:53.4]} 10... Rd8 {[%clk 0:01:00.4]} 11. Qc2 {[%clk
0:02:53.4]} 11... h6 {[%clk 0:00:59.5]} 12. Bxf6 {[%clk 0:02:50.5]} 12... gxf6
{[%clk 0:01:01.4]} 13. Nxc4 {[%clk 0:02:44.7]} 13... Nc6 {[%clk 0:01:01]} 14. e3
{[%clk 0:02:37.3]} 14... Bd7 {[%clk 0:00:52.5]} 15. a3 {[%clk 0:02:27.7]} 15...
Rac8 {[%clk 0:00:37]} 16. b4 {[%clk 0:02:27.4]} 16... Nxb4 {[%clk 0:00:15.4]}
17. Qe2 {[%clk 0:01:20.9]} 17... Nc6 {[%clk 0:00:13.3]} 18. Qh5 {[%clk
0:01:17.9]} 18... Kg7 {[%clk 0:00:11.4]} 19. Qg4+ {[%clk 0:01:08.3]} 19... Kh7
{[%clk 0:00:12.8]} 20. Rfd1 {[%clk 0:01:01.6]} 20... f5 {[%clk 0:00:08.7]} 21.
Qe2 {[%clk 0:00:54.7]} 21... Be8 {[%clk 0:00:09.4]} 22. Nd2 {[%clk 0:00:45.3]}
22... Ne5 {[%clk 0:00:04.6]} 23. Nb3 {[%clk 0:00:39.9]} 23... Rxd1+ {[%clk
0:00:04.1]} 24. Rxd1 {[%clk 0:00:39.9]} 24... Bxa3 {[%clk 0:00:04.6]} 25. Nb5
{[%clk 0:00:41.1]} 25... Bxb5 {[%clk 0:00:04.9]} 26. Qxb5 {[%clk 0:00:43]} 26...
Nc6 {[%clk 0:00:03]} 27. e4 {[%clk 0:00:43.5]} 27... fxe4 {[%clk 0:00:03]} 28.
Bxe4+ {[%clk 0:00:43.9]} 28... Kg7 {[%clk 0:00:04.6]} 29. Qh5 {[%clk 0:00:40.7]}
29... Qg5 {[%clk 0:00:03.4]} 30. Qe2 {[%clk 0:00:38.6]} 30... Rc7 {[%clk
0:00:03.1]} 31. h4 {[%clk 0:00:38.8]} 31... Qf6 {[%clk 0:00:04]} 32. Qg4+ {[%clk
0:00:36.4]} 32... Kf8 {[%clk 0:00:03.5]} 33. Nd2 {[%clk 0:00:32.7]} 33... Ne5
{[%clk 0:00:03.3]} 34. Qe2 {[%clk 0:00:34]} 34... Rd7 {[%clk 0:00:03.4]} 35. Rb1
{[%clk 0:00:34.5]} 35... Bc5 {[%clk 0:00:04]} 36. Kg2 {[%clk 0:00:29]} 36...
Qxf2+ {[%clk 0:00:04.1]} 37. Qxf2 {[%clk 0:00:28.7]} 37... Bxf2 {[%clk 0:00:06]}
38. Kxf2 {[%clk 0:00:20.5]} 38... Rxd2+ {[%clk 0:00:06.6]} 39. Ke3 {[%clk
0:00:22.1]} 39... Rb2 {[%clk 0:00:05.5]} 40. Rc1 {[%clk 0:00:22.2]} 40... Rb3+
{[%clk 0:00:05]} 41. Kf4 {[%clk 0:00:23.4]} 41... Nd3+ {[%clk 0:00:05.1]} 42.
Bxd3 {[%clk 0:00:22.5]} 42... Rxd3 {[%clk 0:00:07]} 43. Rc7 {[%clk 0:00:22.6]}
43... Rb3 {[%clk 0:00:08.1]} 0-1